Workbook

Sheet Merchandise Plan
B3: Merchandise Plan
B4: For Jul-2008 through Jun-2009
C7: Jul | D7: =INDEX(R197:AC197,1,S198+1) -> Aug | E7: =INDEX(R197:AC197,1,T198+1) -> Sep | F7: =INDEX(R197:AC197,1,U198+1) -> Oct | G7: =INDEX(R197:AC197,1,V198+1) -> Nov | H7: =INDEX(R197:AC197,1,W198+1) -> Dec | I7: =INDEX(R197:AC197,1,X198+1) -> Jan | J7: =INDEX(R197:AC197,1,Y198+1) -> Feb | K7: =INDEX(R197:AC197,1,Z198+1) -> Mar | L7: =INDEX(R197:AC197,1,AA198+1) -> Apr | M7: =INDEX(R197:AC197,1,AB198+1) -> May | N7: =INDEX(R197:AC197,1,AC198+1) -> Jun | O7: Year
B9: Beginning Inventory | C9: $48,231 | D9: =IF(C19,C19,"") -> $41,611 | E9: $45,511 | F9: $48,709 | G9: $65,916 | H9: $75,606 | I9: $69,415 | J9: $54,804 | K9: $51,901 | L9: $47,610 | M9: $42,110 | N9: $43,279 | O9: =IF(SUM(C9:N9),C9,"") -> $48,231
B11: Sales | C11: $72,000 | D11: $87,000 | E11: $98,000 | F11: $105,000 | G11: $110,000 | H11: $175,000 | I11: $85,000 | J11: $90,000 | K11: $95,000 | L11: $83,000 | M11: $84,000 | N11: $89,000 | O11: =IF(SUM(C11:N11),SUM(C11:N11),"") -> $1,173,000
B13: Reductions:
B14: Employee discounts | C14: $365 | D14: $206 | E14: $668 | F14: $1 | G14: $501 | H14: $1,636 | I14: $838 | J14: $275 | K14: $78 | L14: $522 | M14: $29 | N14: $91 | O14: =IF(SUM(C14:N14),SUM(C14:N14),"") -> $5,210
B15: Shortages | C15: $284 | D15: $1,266 | E15: $1,469 | F15: $1,418 | G15: $1,651 | H15: $1,665 | I15: $820 | J15: $1,632 | K15: $754 | L15: $1,976 | M15: $841 | N15: $1,964 | O15: =IF(SUM(C15:N15),SUM(C15:N15),"") -> $15,740
B16: Markdowns | C16: $1,322 | D16: $3,433 | E16: $4,097 | F16: $2,825 | G16: $373 | H16: $511 | I16: $1,992 | J16: $2,674 | K16: $3,484 | L16: $2,982 | M16: $2,840 | N16: $2,963 | O16: =IF(SUM(C16:N16),SUM(C16:N16),"") -> $29,496
B17: Total | C17: =IF(SUM(C14:C16),SUM(C14:C16),"") -> $1,971 | D17: $4,905 | E17: $6,234 | F17: $4,244 | G17: $2,525 | H17: $3,812 | I17: $3,650 | J17: $4,581 | K17: $4,316 | L17: $5,480 | M17: $3,710 | N17: $5,018 | O17: =IF(SUM(C17:N17),SUM(C17:N17),"") -> $50,446
B19: Ending Inventory | C19: $41,611 | D19: $45,511 | E19: $48,709 | F19: $65,916 | G19: $75,606 | H19: $69,415 | I19: $54,804 | J19: $51,901 | K19: $47,610 | L19: $42,110 | M19: $43,279 | N19: $42,113 | O19: =IF(SUM(C19:N19),N19,"") -> $42,113
B21: Retail Purchases | C21: =IF(AND(ISNUMBER(C11),ISNUMBER(C17),ISNUMBER(C19),ISNUMBER(C9)),C11+C17+C19-C9,"") -> $67,351 | D21: $95,805 | E21: $107,432 | F21: $126,451 | G21: $122,215 | H21: $172,621 | I21: $74,039 | J21: $91,678 | K21: $95,025 | L21: $82,980 | M21: $88,879 | N21: $92,852 | O21: =IF(SUM(C21:N21),SUM(C21:N21),"") -> $1,217,328
B23: Average Markup | C23: 50% | D23: 50% | E23: 50% | F23: 50% | G23: 50% | H23: 52% | I23: 47% | J23: 48% | K23: 50% | L23: 50% | M23: 50% | N23: 50% | O23: =IF(OR(ISNUMBER(O21),ISNUMBER(O25)),O21/O25-1,"") -> 50%
B25: Purchases at Cost | C25: =IF(ISNUMBER(C21),C21/(1+C23),"") -> $44,901 | D25: $63,870 | E25: $71,621 | F25: $84,301 | G25: $81,477 | H25: $113,566 | I25: $50,367 | J25: $61,945 | K25: $63,350 | L25: $55,320 | M25: $59,253 | N25: $61,901 | O25: =IF(SUM(C25:N25),SUM(C25:N25),"") -> $811,871
B27: Cumulative Markup | C27: =IF(AND(ISNUMBER(C21),ISNUMBER(C25)),C21-C25,"") -> $22,450 | D27: $31,935 | E27: $35,811 | F27: $42,150 | G27: $40,738 | H27: $59,055 | I27: $23,672 | J27: $29,733 | K27: $31,675 | L27: $27,660 | M27: $29,626 | N27: $30,951 | O27: =IF(SUM(C27:N27),SUM(C27:N27),"") -> $405,457
B29: Gross Profit | C29: =IF(OR(ISNUMBER(C27),ISNUMBER(C17)),C27-C17,"") -> $20,479 | D29: $27,030 | E29: $29,577 | F29: $37,906 | G29: $38,213 | H29: $55,243 | I29: $20,022 | J29: $25,152 | K29: $27,359 | L29: $22,180 | M29: $25,916 | N29: $25,933 | O29: =IF(SUM(C29:N29),SUM(C29:N29),"") -> $355,011
R196: MONTH TABLE: DO NOT CHANGE
R197: Jan | S197: Feb | T197: Mar | U197: Apr | V197: May | W197: Jun | X197: Jul | Y197: Aug | Z197: Sep | AA197: Oct | AB197: Nov | AC197: Dec
R198: =MATCH(PROPER(LEFT(TRIM(C7),3)),R197:AC197,0)-1 -> 6 | S198: =IF(R198=11,0,R198+1) -> 7 | T198: 8 | U198: 9 | V198: 10 | W198: 11 | X198: 0 | Y198: 1 | Z198: 2 | AA198: 3 | AB198: 4 | AC198: 5
